[Event "Early-Titled-Tuesday-Blitz-March-26-2024"]
[Site "Chess.com"]
[Date "2024.03.26"]
[Round "11"]
[White "Felix-Rose"]
[Black "Hope_6"]
[Result "0-1"]
[WhiteElo "2247"]
[BlackElo "2654"]
[TimeControl "180+1"]
[EndTime "10:04:54 PDT"]
[Termination "Hope_6 won by resignation"]

1. Nf3 {[%clk 0:03:00]} 1... d5 {[%clk 0:02:59.2]} 2. e3 {[%clk 0:03:00.2]} 2...
Nf6 {[%clk 0:02:58.1]} 3. c4 {[%clk 0:03:00.1]} 3... e6 {[%clk 0:02:52.8]} 4.
Nc3 {[%clk 0:02:58.9]} 4... Bd6 {[%clk 0:02:52]} 5. b3 {[%clk 0:02:56.3]} 5...
O-O {[%clk 0:02:51]} 6. Bb2 {[%clk 0:02:55.6]} 6... c5 {[%clk 0:02:46.4]} 7.
cxd5 {[%clk 0:02:52.3]} 7... exd5 {[%clk 0:02:45.1]} 8. d4 {[%clk 0:02:52.4]}
8... cxd4 {[%clk 0:02:44]} 9. Nxd4 {[%clk 0:02:51.8]} 9... Nc6 {[%clk
0:02:41.5]} 10. Be2 {[%clk 0:02:50.2]} 10... Be6 {[%clk 0:02:31.5]} 11. O-O
{[%clk 0:02:49.7]} 11... Rc8 {[%clk 0:02:24.2]} 12. Rc1 {[%clk 0:02:48.9]} 12...
a6 {[%clk 0:02:14.9]} 13. Bf3 {[%clk 0:02:48.9]} 13... Qc7 {[%clk 0:02:06.4]}
14. g3 {[%clk 0:02:40.3]} 14... Qe7 {[%clk 0:02:00.7]} 15. Nxc6 {[%clk
0:02:24.5]} 15... bxc6 {[%clk 0:01:58.8]} 16. e4 {[%clk 0:02:21.8]} 16... Bh3
{[%clk 0:01:55.5]} 17. Re1 {[%clk 0:02:19.4]} 17... dxe4 {[%clk 0:01:32.7]} 18.
Nxe4 {[%clk 0:02:08.6]} 18... Nxe4 {[%clk 0:01:25.7]} 19. Rxe4 {[%clk
0:01:57.5]} 19... Be6 {[%clk 0:01:01.4]} 20. Qe2 {[%clk 0:01:18.6]} 20... Qg5
{[%clk 0:00:49.7]} 21. h4 {[%clk 0:00:40.5]} 21... Qh6 {[%clk 0:00:40.2]} 22.
Rd1 {[%clk 0:00:32.5]} 22... Bc5 {[%clk 0:00:33.8]} 23. Bg4 {[%clk 0:00:28.1]}
23... Bd5 {[%clk 0:00:27.8]} 24. Re5 {[%clk 0:00:21.8]} 24... Rcd8 {[%clk
0:00:24.5]} 25. Rh5 {[%clk 0:00:17.5]} 25... Qd6 {[%clk 0:00:14.3]} 26. Rg5
{[%clk 0:00:18]} 26... f6 {[%clk 0:00:13.4]} 27. Rh5 {[%clk 0:00:13.7]} 27...
Qxg3+ {[%clk 0:00:13.3]} 28. Kf1 {[%clk 0:00:12.4]} 28... Qg2+ {[%clk
0:00:12.4]} 29. Ke1 {[%clk 0:00:12.3]} 29... Rfe8 {[%clk 0:00:12.1]} 30. Be5
{[%clk 0:00:09.9]} 30... Bb4+ {[%clk 0:00:10.3]} 31. Rd2 {[%clk 0:00:08.5]}
31... Bxd2+ {[%clk 0:00:08.9]} 32. Qxd2 {[%clk 0:00:08.8]} 32... Qxg4 {[%clk
0:00:05.7]} 0-1

[Event "Early-Titled-Tuesday-Blitz-March-26-2024"]
[Site "Chess.com"]
[Date "2024.03.26"]
[Round "11"]
[White "yaguigor"]
[Black "Harry_Rakkel"]
[Result "0-1"]
[WhiteElo "2580"]
[BlackElo "2720"]
[TimeControl "180+1"]
[EndTime "10:04:55 PDT"]
[Termination "Harry_Rakkel won by resignation"]

1. e4 {[%clk 0:03:00.9]} 1... c5 {[%clk 0:02:58.3]} 2. Nf3 {[%clk 0:02:59.9]}
2... e6 {[%clk 0:02:58.2]} 3. d4 {[%clk 0:02:58.8]} 3... cxd4 {[%clk 0:02:58.4]}
4. Nxd4 {[%clk 0:02:59.4]} 4... Nc6 {[%clk 0:02:56.7]} 5. Nc3 {[%clk 0:02:59.5]}
5... Qc7 {[%clk 0:02:56.6]} 6. Be3 {[%clk 0:02:58.8]} 6... a6 {[%clk 0:02:55.9]}
7. Qd2 {[%clk 0:02:58.3]} 7... Nf6 {[%clk 0:02:55.2]} 8. f4 {[%clk 0:02:54.4]}
8... d6 {[%clk 0:02:50.2]} 9. Be2 {[%clk 0:02:53]} 9... Be7 {[%clk 0:02:45.3]}
10. O-O-O {[%clk 0:02:52.3]} 10... O-O {[%clk 0:02:41]} 11. Kb1 {[%clk
0:02:34.6]} 11... Na5 {[%clk 0:02:29.4]} 12. g4 {[%clk 0:02:28.4]} 12... b5
{[%clk 0:02:24.4]} 13. g5 {[%clk 0:02:27.7]} 13... Nd7 {[%clk 0:02:18.5]} 14. a3
{[%clk 0:02:10]} 14... Nb6 {[%clk 0:01:56.9]} 15. Bd3 {[%clk 0:02:08.3]} 15...
Nbc4 {[%clk 0:01:53.9]} 16. Qe1 {[%clk 0:02:07.5]} 16... Rb8 {[%clk 0:01:41.5]}
17. Bc1 {[%clk 0:01:47.9]} 17... b4 {[%clk 0:01:27.5]} 18. axb4 {[%clk
0:01:46.7]} 18... Rxb4 {[%clk 0:01:28]} 19. Nd5 {[%clk 0:01:45.8]} 19... Rxb2+
{[%clk 0:01:27.2]} 20. Bxb2 {[%clk 0:01:44.7]} 20... exd5 {[%clk 0:01:26.6]} 21.
exd5 {[%clk 0:01:36.9]} 21... Bg4 {[%clk 0:01:17.4]} 22. Rc1 {[%clk 0:01:33.4]}
22... Rb8 {[%clk 0:01:16.6]} 23. Nb3 {[%clk 0:01:33.4]} 23... Nxb2 {[%clk
0:00:54]} 24. Kxb2 {[%clk 0:01:32.3]} 24... Bf8 {[%clk 0:00:41.2]} 25. Qc3
{[%clk 0:01:21.3]} 25... Qd8 {[%clk 0:00:40.8]} 26. Ra1 {[%clk 0:01:17.8]} 26...
Nxb3 {[%clk 0:00:39.1]} 27. cxb3 {[%clk 0:01:16.9]} 27... g6 {[%clk 0:00:39.8]}
28. Qa5 {[%clk 0:00:57.4]} 28... Bg7+ {[%clk 0:00:27.2]} 29. Kc2 {[%clk
0:00:57.9]} 29... Qc8+ {[%clk 0:00:22.1]} 30. Kd2 {[%clk 0:00:52.6]} 30... Qb7
{[%clk 0:00:18.9]} 31. Rab1 {[%clk 0:00:44.8]} 31... Ra8 {[%clk 0:00:17.7]} 32.
Rhc1 {[%clk 0:00:42.6]} 32... Qa7 {[%clk 0:00:15.8]} 33. Rf1 {[%clk 0:00:37]}
33... Qd4 {[%clk 0:00:15.1]} 34. Rbc1 {[%clk 0:00:31.1]} 34... Re8 {[%clk
0:00:14.7]} 35. Rc4 {[%clk 0:00:23.4]} 35... Qb2+ {[%clk 0:00:10.9]} 36. Rc2
{[%clk 0:00:20.8]} 36... Qxb3 {[%clk 0:00:10.5]} 37. Qxa6 {[%clk 0:00:16]} 37...
Qb4+ {[%clk 0:00:10.2]} 38. Kc1 {[%clk 0:00:09.6]} 38... Re1+ {[%clk 0:00:10.8]}
0-1

[Event "Early-Titled-Tuesday-Blitz-March-26-2024"]
[Site "Chess.com"]
[Date "2024.03.26"]
[Round "11"]
[White "bazar-wokzal"]
[Black "AsaHoffmann"]
[Result "1-0"]
[WhiteElo "2580"]
[BlackElo "2420"]
[TimeControl "180+1"]
[EndTime "10:04:56 PDT"]
[Termination "bazar-wokzal won by resignation"]

1. e4 {[%clk 0:03:00.9]} 1... d6 {[%clk 0:02:59.6]} 2. f4 {[%clk 0:02:57.6]}
2... c6 {[%clk 0:02:58.3]} 3. Nf3 {[%clk 0:02:57.5]} 3... d5 {[%clk 0:02:58.1]}
4. e5 {[%clk 0:02:55.6]} 4... Bg4 {[%clk 0:02:57.6]} 5. d4 {[%clk 0:02:54.5]}
5... e6 {[%clk 0:02:57.2]} 6. Be3 {[%clk 0:02:54.8]} 6... c5 {[%clk 0:02:56.7]}
7. c3 {[%clk 0:02:54.5]} 7... Qb6 {[%clk 0:02:55.9]} 8. dxc5 {[%clk 0:02:48.4]}
8... Bxc5 {[%clk 0:02:54.8]} 9. Bxc5 {[%clk 0:02:47]} 9... Qxc5 {[%clk
0:02:54.9]} 10. Qd4 {[%clk 0:02:45.2]} 10... Nd7 {[%clk 0:02:51.6]} 11. Nbd2
{[%clk 0:02:41.1]} 11... Ne7 {[%clk 0:02:48.6]} 12. Qxc5 {[%clk 0:02:39.2]}
12... Nxc5 {[%clk 0:02:48.3]} 13. Bb5+ {[%clk 0:02:39.9]} 13... Kf8 {[%clk
0:02:43.4]} 14. Nd4 {[%clk 0:02:32.9]} 14... a6 {[%clk 0:02:41.6]} 15. Be2
{[%clk 0:02:29.8]} 15... Bxe2 {[%clk 0:02:38.7]} 16. Kxe2 {[%clk 0:02:30.7]}
16... Nc6 {[%clk 0:02:36.8]} 17. Ke3 {[%clk 0:02:11.6]} 17... Ke7 {[%clk
0:02:32.1]} 18. Rac1 {[%clk 0:02:03.7]} 18... Rac8 {[%clk 0:02:31.7]} 19. b4
{[%clk 0:01:54.3]} 19... Na4 {[%clk 0:02:23.4]} 20. a3 {[%clk 0:01:49.3]} 20...
b5 {[%clk 0:02:16.6]} 21. N2b3 {[%clk 0:01:42.7]} 21... Nb2 {[%clk 0:02:13.9]}
22. Nc5 {[%clk 0:01:20.6]} 22... Nc4+ {[%clk 0:02:11]} 23. Kd3 {[%clk 0:01:18]}
23... Nxd4 {[%clk 0:02:08.1]} 24. cxd4 {[%clk 0:01:12.5]} 24... Rc6 {[%clk
0:02:03.6]} 25. Rc3 {[%clk 0:01:07.2]} 25... Ra8 {[%clk 0:02:00.6]} 26. Rb1
{[%clk 0:01:05.4]} 26... a5 {[%clk 0:01:58]} 27. bxa5 {[%clk 0:00:45.9]} 27...
Rxa5 {[%clk 0:01:57.3]} 28. Rbb3 {[%clk 0:00:44]} 28... f6 {[%clk 0:01:53.3]}
29. g4 {[%clk 0:00:43.5]} 29... Rc8 {[%clk 0:01:44]} 30. h4 {[%clk 0:00:42]}
30... fxe5 {[%clk 0:01:43.6]} 31. fxe5 {[%clk 0:00:41.4]} 31... Rf8 {[%clk
0:01:43.3]} 32. Ke2 {[%clk 0:00:40.7]} 32... Rf4 {[%clk 0:01:41.1]} 33. a4
{[%clk 0:00:37.6]} 33... Rxd4 {[%clk 0:01:22.3]} 34. Rxb5 {[%clk 0:00:33.1]}
34... Rxb5 {[%clk 0:01:20.2]} 35. axb5 {[%clk 0:00:33.5]} 35... Nxe5 {[%clk
0:01:20]} 36. b6 {[%clk 0:00:32.9]} 36... Rb4 {[%clk 0:01:18.9]} 37. b7 {[%clk
0:00:32.9]} 37... d4 {[%clk 0:01:18.3]} 38. Rb3 {[%clk 0:00:31.6]} 38... d3+
{[%clk 0:01:15.3]} 39. Ke3 {[%clk 0:00:27.7]} 39... Rxb3 {[%clk 0:01:12.6]} 40.
Nxb3 {[%clk 0:00:27.2]} 40... Nc6 {[%clk 0:01:09.8]} 41. Kxd3 {[%clk 0:00:26.5]}
41... Kd7 {[%clk 0:01:09.1]} 42. Ke4 {[%clk 0:00:25.5]} 42... Kc7 {[%clk
0:01:08]} 43. Nd4 {[%clk 0:00:22.2]} 43... Nd8 {[%clk 0:00:56.4]} 44. Ke5 {[%clk
0:00:22]} 44... Kxb7 {[%clk 0:00:53.3]} 45. Nxe6 {[%clk 0:00:21.2]} 45... Nf7+
{[%clk 0:00:52.4]} 46. Kd5 {[%clk 0:00:19.3]} 46... g6 {[%clk 0:00:48.3]} 47.
Nf8 {[%clk 0:00:19.4]} 47... h5 {[%clk 0:00:46.8]} 48. g5 {[%clk 0:00:17.6]}
48... Kc7 {[%clk 0:00:45.1]} 49. Nxg6 {[%clk 0:00:16.3]} 49... Kd7 {[%clk
0:00:44.7]} 50. Ne5+ {[%clk 0:00:16.6]} 50... Nxe5 {[%clk 0:00:44.3]} 51. Kxe5
{[%clk 0:00:17.5]} 51... Ke7 {[%clk 0:00:44.5]} 52. Kf5 {[%clk 0:00:17.9]} 52...
Kf7 {[%clk 0:00:44.8]} 53. g6+ {[%clk 0:00:18.5]} 53... Kg7 {[%clk 0:00:44.9]}
54. Kg5 {[%clk 0:00:19.4]} 54... Kg8 {[%clk 0:00:44.2]} 55. Kxh5 {[%clk
0:00:19.8]} 55... Kg7 {[%clk 0:00:44.3]} 56. Kg5 {[%clk 0:00:20.2]} 56... Kg8
{[%clk 0:00:44.4]} 57. Kh6 {[%clk 0:00:20.4]} 57... Kh8 {[%clk 0:00:44.4]} 58.
h5 {[%clk 0:00:20.8]} 58... Kg8 {[%clk 0:00:44.4]} 59. g7 {[%clk 0:00:21.4]}
59... Kf7 {[%clk 0:00:44.1]} 60. Kh7 {[%clk 0:00:22.3]} 1-0

[Event "Early-Titled-Tuesday-Blitz-March-26-2024"]
[Site "Chess.com"]
[Date "2024.03.26"]
[Round "11"]
[White "Korchmar_Vasiliy"]
[Black "Statham_01"]
[Result "0-1"]
[WhiteElo "2691"]
[BlackElo "2604"]
[TimeControl "180+1"]
[EndTime "10:04:58 PDT"]
[Termination "Statham_01 won on time"]

1. e4 {[%clk 0:03:00.9]} 1... e5 {[%clk 0:03:00.2]} 2. Nf3 {[%clk 0:03:01]} 2...
Nf6 {[%clk 0:03:00.2]} 3. Nxe5 {[%clk 0:03:00.4]} 3... d5 {[%clk 0:03:00.1]} 4.
exd5 {[%clk 0:02:53.1]} 4... Qxd5 {[%clk 0:03:00.3]} 5. d4 {[%clk 0:02:43.3]}
5... Nc6 {[%clk 0:03:00.3]} 6. Nxc6 {[%clk 0:02:05.9]} 6... Qxc6 {[%clk
0:03:01.2]} 7. Nc3 {[%clk 0:02:01.8]} 7... Bb4 {[%clk 0:03:00.9]} 8. Qf3 {[%clk
0:01:56.6]} 8... Qxf3 {[%clk 0:02:06.8]} 9. gxf3 {[%clk 0:01:56.2]} 9... Bf5
{[%clk 0:02:07.7]} 10. a3 {[%clk 0:01:32.5]} 10... Ba5 {[%clk 0:02:00]} 11. Bd3
{[%clk 0:01:28.9]} 11... Bxd3 {[%clk 0:01:54.8]} 12. cxd3 {[%clk 0:01:29.8]}
12... O-O-O {[%clk 0:01:55.5]} 13. Be3 {[%clk 0:01:30.1]} 13... Nd5 {[%clk
0:01:38.3]} 14. Kd2 {[%clk 0:01:28]} 14... f5 {[%clk 0:01:31.7]} 15. b4 {[%clk
0:01:27.2]} 15... Bb6 {[%clk 0:01:31.8]} 16. Ne2 {[%clk 0:00:59.3]} 16... h6
{[%clk 0:01:16.6]} 17. f4 {[%clk 0:00:51.7]} 17... a5 {[%clk 0:01:09]} 18. Rhg1
{[%clk 0:00:48]} 18... Rd7 {[%clk 0:01:07.1]} 19. Rg6 {[%clk 0:00:44.1]} 19...
Re8 {[%clk 0:00:59.7]} 20. b5 {[%clk 0:00:40.6]} 20... a4 {[%clk 0:00:59.3]} 21.
Rag1 {[%clk 0:00:38.5]} 21... Ba5+ {[%clk 0:00:56.8]} 22. Kd1 {[%clk 0:00:34.7]}
22... Nxe3+ {[%clk 0:00:46.9]} 23. fxe3 {[%clk 0:00:35.6]} 23... Rxe3 {[%clk
0:00:47.6]} 24. Rxg7 {[%clk 0:00:35.9]} 24... Rxd3+ {[%clk 0:00:44.9]} 25. Kc1
{[%clk 0:00:34.1]} 25... Rxg7 {[%clk 0:00:42.1]} 26. Rxg7 {[%clk 0:00:35]} 26...
Rxa3 {[%clk 0:00:40.6]} 27. Ng3 {[%clk 0:00:23]} 27... Rf3 {[%clk 0:00:28.7]}
28. Nxf5 {[%clk 0:00:20.3]} 28... Rxf4 {[%clk 0:00:27.9]} 29. Ne7+ {[%clk
0:00:15.9]} 29... Kd8 {[%clk 0:00:20.6]} 30. Ng6 {[%clk 0:00:01.1]} 30... Rxd4
{[%clk 0:00:16.7]} 31. Ne5 {[%clk 0:00:01.8]} 31... Re4 {[%clk 0:00:12.8]} 32.
Nd3 {[%clk 0:00:02]} 32... a3 {[%clk 0:00:11.9]} 33. Rg8+ {[%clk 0:00:02.5]}
33... Ke7 {[%clk 0:00:11.2]} 34. Kb1 {[%clk 0:00:02.5]} 34... Re2 {[%clk
0:00:11.1]} 35. Rg7+ {[%clk 0:00:02.1]} 35... Kf6 {[%clk 0:00:10.9]} 36. Rg8
{[%clk 0:00:02.3]} 36... a2+ {[%clk 0:00:11.6]} 0-1

[Event "Early-Titled-Tuesday-Blitz-March-26-2024"]
[Site "Chess.com"]
[Date "2024.03.26"]
[Round "11"]
[White "Let_it_be_1"]
[Black "Kotofeyca"]
[Result "1-0"]
[WhiteElo "2650"]
[BlackElo "2493"]
[TimeControl "180+1"]
[EndTime "10:05:05 PDT"]
[Termination "Let_it_be_1 won on time"]

1. e4 {[%clk 0:03:00.9]} 1... c5 {[%clk 0:02:59.7]} 2. Nf3 {[%clk 0:03:00.6]}
2... d6 {[%clk 0:03:00.3]} 3. d4 {[%clk 0:03:00.7]} 3... cxd4 {[%clk 0:03:01.2]}
4. Nxd4 {[%clk 0:03:01.1]} 4... Nf6 {[%clk 0:03:01.9]} 5. Nc3 {[%clk 0:03:01.1]}
5... a6 {[%clk 0:03:02.5]} 6. Be2 {[%clk 0:03:01.2]} 6... e5 {[%clk 0:03:02.8]}
7. Nb3 {[%clk 0:03:01.3]} 7... Be7 {[%clk 0:03:02.9]} 8. O-O {[%clk 0:03:01.6]}
8... O-O {[%clk 0:03:02.9]} 9. Kh1 {[%clk 0:03:02]} 9... b5 {[%clk 0:03:02.6]}
10. a4 {[%clk 0:03:01.6]} 10... b4 {[%clk 0:02:58.1]} 11. Nd5 {[%clk 0:03:01.7]}
11... Nxd5 {[%clk 0:02:13]} 12. Qxd5 {[%clk 0:03:00.9]} 12... Ra7 {[%clk
0:02:13.4]} 13. Be3 {[%clk 0:03:01.2]} 13... Be6 {[%clk 0:02:04.7]} 14. Qd2
{[%clk 0:02:57]} 14... Rb7 {[%clk 0:02:03.7]} 15. a5 {[%clk 0:02:52.9]} 15... d5
{[%clk 0:01:41.9]} 16. Bb6 {[%clk 0:02:39.2]} 16... Qd7 {[%clk 0:01:33.5]} 17.
exd5 {[%clk 0:01:31.4]} 17... Qxd5 {[%clk 0:01:18.9]} 18. Qe3 {[%clk 0:01:31.3]}
18... e4 {[%clk 0:00:35.1]} 19. Rad1 {[%clk 0:01:11.4]} 19... Qe5 {[%clk
0:00:31.6]} 20. Nc5 {[%clk 0:00:42.3]} 20... Bxc5 {[%clk 0:00:27.3]} 21. Bxc5
{[%clk 0:00:42.3]} 21... Rc8 {[%clk 0:00:25.9]} 22. Bd4 {[%clk 0:00:41.6]} 22...
Qxa5 {[%clk 0:00:24.2]} 23. c3 {[%clk 0:00:37]} 23... Nc6 {[%clk 0:00:21.6]} 24.
Qxe4 {[%clk 0:00:34.5]} 24... Qc7 {[%clk 0:00:19.2]} 25. Bf3 {[%clk 0:00:31.3]}
25... Rbb8 {[%clk 0:00:11.3]} 26. Be3 {[%clk 0:00:27.3]} 26... bxc3 {[%clk
0:00:11]} 27. bxc3 {[%clk 0:00:27.3]} 27... Ne7 {[%clk 0:00:10.9]} 28. Bf4
{[%clk 0:00:27.2]} 28... Qxc3 {[%clk 0:00:08.2]} 29. Bxb8 {[%clk 0:00:26.8]}
29... Rxb8 {[%clk 0:00:08.5]} 30. Rc1 {[%clk 0:00:25.1]} 30... Qf6 {[%clk
0:00:06.9]} 31. Rfd1 {[%clk 0:00:22.4]} 31... g6 {[%clk 0:00:05.6]} 32. Qa4
{[%clk 0:00:21.6]} 32... Rb6 {[%clk 0:00:04.7]} 33. Qa5 {[%clk 0:00:21.3]} 33...
Rb2 {[%clk 0:00:03.2]} 34. Rd2 {[%clk 0:00:16.7]} 34... Rxd2 {[%clk 0:00:02.4]}
35. Qxd2 {[%clk 0:00:16.8]} 35... Nf5 {[%clk 0:00:03.3]} 36. Bb7 {[%clk
0:00:12.9]} 36... a5 {[%clk 0:00:02.5]} 37. Qxa5 {[%clk 0:00:12.4]} 37... Nd4
{[%clk 0:00:02.9]} 38. f3 {[%clk 0:00:09.5]} 38... Nb3 {[%clk 0:00:02]} 39. Qa8+
{[%clk 0:00:08.4]} 39... Kg7 {[%clk 0:00:02.5]} 40. Rg1 {[%clk 0:00:08.2]} 1-0

[Event "Early-Titled-Tuesday-Blitz-March-26-2024"]
[Site "Chess.com"]
[Date "2024.03.26"]
[Round "11"]
[White "EternalNight8"]
[Black "C_K_G"]
[Result "1-0"]
[WhiteElo "2476"]
[BlackElo "2265"]
[TimeControl "180+1"]
[EndTime "10:05:06 PDT"]
[Termination "EternalNight8 won on time"]

1. d4 {[%clk 0:03:00.9]} 1... d5 {[%clk 0:02:59.2]} 2. c4 {[%clk 0:03:01.2]}
2... e6 {[%clk 0:02:58.4]} 3. Nf3 {[%clk 0:03:01.9]} 3... Nf6 {[%clk 0:02:58.9]}
4. g3 {[%clk 0:03:02.5]} 4... b6 {[%clk 0:02:58.9]} 5. Bg2 {[%clk 0:03:02.3]}
5... Bb7 {[%clk 0:02:59.3]} 6. cxd5 {[%clk 0:03:01.1]} 6... exd5 {[%clk
0:02:58.9]} 7. O-O {[%clk 0:03:00.9]} 7... Nbd7 {[%clk 0:02:56.3]} 8. Nc3 {[%clk
0:02:59.9]} 8... a6 {[%clk 0:02:55.9]} 9. Ne5 {[%clk 0:02:57.2]} 9... Bd6 {[%clk
0:02:54]} 10. Bf4 {[%clk 0:02:47.9]} 10... O-O {[%clk 0:02:52.9]} 11. Qc2 {[%clk
0:02:40.4]} 11... Re8 {[%clk 0:02:47.3]} 12. Qf5 {[%clk 0:02:25.5]} 12... Nxe5
{[%clk 0:01:55.2]} 13. dxe5 {[%clk 0:02:22.2]} 13... Bc8 {[%clk 0:01:54.5]} 14.
Qd3 {[%clk 0:01:47.8]} 14... Bxe5 {[%clk 0:01:53.5]} 15. Nxd5 {[%clk 0:01:38.7]}
15... Bxf4 {[%clk 0:01:37]} 16. Nxf6+ {[%clk 0:01:28.9]} 16... Qxf6 {[%clk
0:01:35.3]} 17. Bxa8 {[%clk 0:01:28.8]} 17... Bf5 {[%clk 0:01:18.3]} 18. Qf3
{[%clk 0:01:18.3]} 18... Be5 {[%clk 0:01:12.4]} 19. Bc6 {[%clk 0:01:15.4]} 19...
Rf8 {[%clk 0:01:04.5]} 20. Rad1 {[%clk 0:01:00.3]} 20... Bxb2 {[%clk 0:00:53.2]}
21. Be4 {[%clk 0:00:59.9]} 21... Bh3 {[%clk 0:00:39.3]} 22. Qxf6 {[%clk
0:00:59.4]} 22... Bxf6 {[%clk 0:00:39.7]} 23. Bg2 {[%clk 0:01:00]} 23... Be6
{[%clk 0:00:38.8]} 24. Rd2 {[%clk 0:00:51.6]} 24... c5 {[%clk 0:00:37]} 25. Rd6
{[%clk 0:00:48]} 25... Bxa2 {[%clk 0:00:26.8]} 26. Rxb6 {[%clk 0:00:47.6]} 26...
Bc4 {[%clk 0:00:26.7]} 27. Bf3 {[%clk 0:00:33.7]} 27... Bb5 {[%clk 0:00:19.7]}
28. Rd1 {[%clk 0:00:30.5]} 28... g6 {[%clk 0:00:18.8]} 29. Rxf6 {[%clk
0:00:29.6]} 29... c4 {[%clk 0:00:17.6]} 30. Rb6 {[%clk 0:00:28.5]} 30... Rc8
{[%clk 0:00:15.1]} 31. Rbd6 {[%clk 0:00:21.8]} 31... Kg7 {[%clk 0:00:13.9]} 32.
Bb7 {[%clk 0:00:21.5]} 32... Rc7 {[%clk 0:00:13.7]} 33. Bxa6 {[%clk 0:00:21.6]}
33... Ba4 {[%clk 0:00:12.7]} 34. Rc1 {[%clk 0:00:21.3]} 34... c3 {[%clk
0:00:13.1]} 35. Bd3 {[%clk 0:00:21.3]} 35... Bb3 {[%clk 0:00:10.5]} 36. Rb6
{[%clk 0:00:21.1]} 36... Be6 {[%clk 0:00:10.2]} 37. Be4 {[%clk 0:00:19.8]} 37...
h5 {[%clk 0:00:07.9]} 38. Rc6 {[%clk 0:00:19.9]} 38... Rd7 {[%clk 0:00:06.4]}
39. R6xc3 {[%clk 0:00:19.8]} 39... h4 {[%clk 0:00:07]} 40. gxh4 {[%clk
0:00:19.9]} 40... Rd2 {[%clk 0:00:06.2]} 41. Bf3 {[%clk 0:00:20]} 41... Bh3
{[%clk 0:00:02.3]} 42. R3c2 {[%clk 0:00:20.1]} 42... Rd4 {[%clk 0:00:01.9]} 43.
Rc3 {[%clk 0:00:19.9]} 43... Rxh4 {[%clk 0:00:01.2]} 44. Bg2 {[%clk 0:00:20]}
1-0

[Event "Early-Titled-Tuesday-Blitz-March-26-2024"]
[Site "Chess.com"]
[Date "2024.03.26"]
[Round "11"]
[White "Likvidator228"]
[Black "flawian2008"]
[Result "0-1"]
[WhiteElo "2564"]
[BlackElo "2443"]
[TimeControl "180+1"]
[EndTime "10:05:09 PDT"]
[Termination "flawian2008 won by resignation"]

1. d4 {[%clk 0:02:53.4]} 1... Nf6 {[%clk 0:02:59.9]} 2. Bf4 {[%clk 0:02:50.2]}
2... g6 {[%clk 0:02:59.4]} 3. e3 {[%clk 0:02:50.5]} 3... Bg7 {[%clk 0:03:00]} 4.
Nf3 {[%clk 0:02:51.2]} 4... O-O {[%clk 0:03:00.6]} 5. Nbd2 {[%clk 0:02:51.7]}
5... d6 {[%clk 0:03:01.4]} 6. Bc4 {[%clk 0:02:51.7]} 6... Nfd7 {[%clk
0:03:02.1]} 7. O-O {[%clk 0:02:48.9]} 7... e5 {[%clk 0:03:02.6]} 8. Bg5 {[%clk
0:02:48.8]} 8... Qe8 {[%clk 0:03:01.1]} 9. dxe5 {[%clk 0:02:48.9]} 9... dxe5
{[%clk 0:03:01.3]} 10. e4 {[%clk 0:02:48.9]} 10... c6 {[%clk 0:03:01.6]} 11. c3
{[%clk 0:02:47.3]} 11... Kh8 {[%clk 0:03:01.8]} 12. a4 {[%clk 0:02:44.8]} 12...
f5 {[%clk 0:03:00.4]} 13. exf5 {[%clk 0:02:07.2]} 13... gxf5 {[%clk 0:03:01.3]}
14. Nb3 {[%clk 0:02:07.4]} 14... f4 {[%clk 0:02:57.8]} 15. Qd6 {[%clk 0:01:58]}
15... e4 {[%clk 0:02:52.7]} 16. Rfe1 {[%clk 0:01:26.2]} 16... Nb6 {[%clk
0:02:15.8]} 17. Bd3 {[%clk 0:01:16.4]} 17... Bf5 {[%clk 0:02:16.1]} 18. Nc5
{[%clk 0:01:04.2]} 18... N8d7 {[%clk 0:02:06]} 19. Nxe4 {[%clk 0:01:01.5]} 19...
Qh5 {[%clk 0:02:05.8]} 20. Be7 {[%clk 0:00:55.5]} 20... Nc8 {[%clk 0:02:00]} 21.
Qa3 {[%clk 0:00:52]} 21... Nxe7 {[%clk 0:02:00.3]} 22. Qxe7 {[%clk 0:00:52]}
22... Rae8 {[%clk 0:01:59.6]} 23. Qb4 {[%clk 0:00:48.8]} 23... Ne5 {[%clk
0:01:52.3]} 24. Nxe5 {[%clk 0:00:47.2]} 24... Rxe5 {[%clk 0:01:52.8]} 25. f3
{[%clk 0:00:39.9]} 25... b6 {[%clk 0:01:29.8]} 26. Nf2 {[%clk 0:00:39.9]} 26...
Re3 {[%clk 0:01:27.8]} 27. Bxf5 {[%clk 0:00:38.2]} 27... Qxf5 {[%clk 0:01:28.5]}
28. Ng4 {[%clk 0:00:28.7]} 28... Ree8 {[%clk 0:01:22.1]} 29. Qc4 {[%clk
0:00:26.6]} 29... h5 {[%clk 0:01:16.8]} 30. Nf2 {[%clk 0:00:24.5]} 30... Re3
{[%clk 0:01:17.4]} 31. Qxc6 {[%clk 0:00:21.7]} 31... h4 {[%clk 0:01:13.6]} 32.
Ng4 {[%clk 0:00:20.6]} 32... Rd3 {[%clk 0:01:13.9]} 33. Qe4 {[%clk 0:00:20.2]}
33... Rd2 {[%clk 0:01:10.8]} 34. Qxf5 {[%clk 0:00:20]} 34... Rxf5 {[%clk
0:01:11.7]} 35. Rab1 {[%clk 0:00:17.5]} 35... Ra5 {[%clk 0:01:09.9]} 36. Re4
{[%clk 0:00:15.7]} 36... b5 {[%clk 0:01:02.9]} 37. axb5 {[%clk 0:00:15.5]} 37...
Rxb5 {[%clk 0:01:03.8]} 38. Rxf4 {[%clk 0:00:15.8]} 38... Bxc3 {[%clk
0:01:03.8]} 39. Rf8+ {[%clk 0:00:15.6]} 39... Kg7 {[%clk 0:01:03.9]} 40. Re8
{[%clk 0:00:13.7]} 40... Bd4+ {[%clk 0:01:04.1]} 41. Kh1 {[%clk 0:00:13.6]}
41... Rbxb2 {[%clk 0:01:04.6]} 42. Rbe1 {[%clk 0:00:12.5]} 42... Rxg2 {[%clk
0:01:03.5]} 43. R1e7+ {[%clk 0:00:12.3]} 43... Kg6 {[%clk 0:01:01]} 44. Rg8+
{[%clk 0:00:12]} 44... Kf5 {[%clk 0:01:00.9]} 45. Rf8+ {[%clk 0:00:10.8]} 45...
Kg5 {[%clk 0:00:57.5]} 46. Rg8+ {[%clk 0:00:08.5]} 46... Kf5 {[%clk 0:00:55.9]}
47. Nh6+ {[%clk 0:00:08.3]} 47... Kf6 {[%clk 0:00:53.4]} 48. Rf7+ {[%clk
0:00:08.7]} 48... Ke6 {[%clk 0:00:53.6]} 49. Re8+ {[%clk 0:00:06.7]} 49... Kd6
{[%clk 0:00:53.6]} 50. Nf5+ {[%clk 0:00:05.9]} 50... Kc5 {[%clk 0:00:50.5]} 51.
Rc7+ {[%clk 0:00:04.8]} 51... Kb6 {[%clk 0:00:49.5]} 52. Nxd4 {[%clk 0:00:03.7]}
52... Rxh2+ {[%clk 0:00:49.1]} 53. Kg1 {[%clk 0:00:03.9]} 53... Kxc7 {[%clk
0:00:49.2]} 54. Re7+ {[%clk 0:00:04.3]} 54... Kb6 {[%clk 0:00:47.5]} 55. Re6+
{[%clk 0:00:04.4]} 55... Kc5 {[%clk 0:00:47.3]} 56. Nf5 {[%clk 0:00:04.4]} 56...
Rbg2+ {[%clk 0:00:44.2]} 57. Kf1 {[%clk 0:00:04.5]} 57... h3 {[%clk 0:00:45.1]}
58. Re5+ {[%clk 0:00:03.7]} 58... Kc6 {[%clk 0:00:44.9]} 59. Ng3 {[%clk
0:00:02.5]} 59... Rxg3 {[%clk 0:00:44.4]} 0-1